{"text_format":"1","workbook":"xlsx","n_sheets":2,"sheets":["From VBA","From Excel"],"not_rendered":{"charts":0,"images":0,"macros":1,"external_links":0,"defined_names":1,"comments":0,"pivot_tables":0},"unopened":[],"bounds":{"document_bytes":16777216,"sheet_cells":100000,"rows_first":2000,"rows_last":500,"rows_between":2000,"halvings":0,"cell_chars":16384,"cell_head_chars":4096},"cells_cut":0,"cells_raw":0,"read":"whole","date_system":"1900"}

{"sheet":"From VBA","index":0,"n_rows":5,"n_cols":5,"rows_kept":5,"cut":false,"hidden":false,"merged":[[1,4,1,7]]}
[]
[null,null,null,null,"SpellCurr()"]
[]
[]
[null,null,null,123,{"$f":"SpellCurr(D5)","v":"Rupees One Hundred Twenty Three Only"}]

{"sheet":"From Excel","index":1,"n_rows":13,"n_cols":33,"rows_kept":13,"cut":false,"hidden":false,"merged":[]}
["Type No Here","Convert in Text",null,null,null,null,null,null,null,null,null,null,null,null,null,null,null,null,null,null,null,null,{"$f":"VALUE(RIGHT(TRUNC(A2/1000000)))","v":0},{"$f":"VALUE(RIGHT(TRUNC(A2/100000)))","v":0},null,{"$f":"VALUE(RIGHT(TRUNC(A2/10000)))","v":0},null,{"$f":"VALUE(RIGHT(TRUNC(A2/1000)))","v":0},{"$f":"VALUE(RIGHT(TRUNC(A2/100)))","v":2},null,{"$f":"VALUE(RIGHT(TRUNC(A2/10)))","v":1},null,{"$f":"VALUE(RIGHT(A2))","v":3}]
[213,{"$f":"IF(ISERROR(CONCATENATE(W2,X2,Y2,Z2,AA2,AB2,AC2,AD2,AE2,AF2,AG2)),\"\",CONCATENATE(W2,X2,Y2,Z2,AA2,AB2,AC2,AD2,AE2,AF2,AG2))","v":"two hundred and thirteen"},null,null,null,null,null,null,null,null,null,null,null,null,null,null,null,null,null,null,null,null,{"$f":"IF(W1=0,\"\",VLOOKUP(W1,W4:Z13,2,FALSE) & \" million \")","v":""},{"$f":"IF(X1+Z1+AB1=0,\"\",IF(X1=0,\"\",VLOOKUP(X1,W4:Z13,2,FALSE) & \" hundred \"))","v":""},{"$f":"IF(OR(Z1<2,X1=0),\"\",\"and \")","v":""},{"$f":"IF(Z1<2,\"\",VLOOKUP(Z1,W4:Z13,4,FALSE))","v":""},{"$f":"IF(AND(W1+X1=0,Z1<2),\"\",IF(Z1+AB1=0,\"\",IF(AND(Z1>1,AB1=0),\"\",IF(Z1*10+AB1<20,\"and \",\"-\"))))","v":""},{"$f":"IF(X1+Z1+AB1=0,\"\",IF(AND(AB1=0,Z1>1),\" thousand \",IF(Z1+AB1=0,\" thousand \",IF(Z1=1,VLOOKUP(AB1,W4:Z13,3,FALSE)&\" thousand \",VLOOKUP(AB1,W4:Z13,2,FALSE)&\" thousand \"))))","v":""},{"$f":"IF(AC1+AE1+AG1=0,\"\",IF(AC1=0,\"\",VLOOKUP(AC1,W4:Z13,2,FALSE) & \" hundred \"))","v":"two hundred "},{"$f":"IF(W1+X1+Z1+AB1+AC1=0,\"\",IF(AE1<2,\"\",\"and \"))","v":""},{"$f":"IF(AE1<2,\"\",VLOOKUP(AE1,W4:Z13,4,FALSE))","v":""},{"$f":"IF(AND(W1+X1+Z1+AB1+AC1=0,AE1<2),\"\",IF(AE1+AG1=0,\"\",IF(AND(AE1>1,AG1=0),\"\",IF(AE1*10+AG1<20,\"and \",\"-\"))))","v":"and "},{"$f":"IF(AND(AG1=0,AE1>1),\"\",IF(AE1+AG1=0,\"\",IF(AE1=1,VLOOKUP(AG1,W4:Z13,3,FALSE),VLOOKUP(AG1,W4:Z13,2,FALSE))))","v":"thirteen"}]
[]
[null,null,null,null,null,null,null,null,null,null,null,null,null,null,null,null,null,null,null,null,null,null,0,null,"ten"]
[null,null,null,null,null,null,null,null,null,null,null,null,null,null,null,null,null,null,null,null,null,null,1,"one","eleven"]
[null,null,null,null,null,null,null,null,null,null,null,null,null,null,null,null,null,null,null,null,null,null,2,"two","twelve","twenty"]
[null,null,null,null,null,null,null,null,null,null,null,null,null,null,null,null,null,null,null,null,null,null,3,"three","thirteen","thirty"]
[null,null,null,null,null,null,null,null,null,null,null,null,null,null,null,null,null,null,null,null,null,null,4,"four","fourteen","forty"]
[null,null,null,null,null,null,null,null,null,null,null,null,null,null,null,null,null,null,null,null,null,null,5,"five","fifteen","fifty"]
[null,null,null,null,null,null,null,null,null,null,null,null,null,null,null,null,null,null,null,null,null,null,6,"six","sixteen","sixty"]
[null,null,null,null,null,null,null,null,null,null,null,null,null,null,null,null,null,null,null,null,null,null,7,"seven","seventeen","seventy"]
[null,null,null,null,null,null,null,null,null,null,null,null,null,null,null,null,null,null,null,null,null,null,8,"eight","eighteen","eighty"]
[null,null,null,null,null,null,null,null,null,null,null,null,null,null,null,null,null,null,null,null,null,null,9,"nine","nineteen","ninety"]